[Event "Titled Tuesday Blitz February 15 Early 2022"]
[White "Faizrakhmanov, Ramil"]
[Black "Kozin, Yuri"]
[WhiteFideId "24103209"]
[BlackFideId "4129920"]
[WhiteElo "2502"]
[BlackElo "2541"]
[Result "1-0"]
[Round "06"]
[TimeControl "180+1"]
[Date "2022.02.15"]
[WhiteClock "0:00:14"]
[BlackClock "0:00:02"]

1. e4 {[%clk 0:03:00]}  c5 {[%clk 0:02:59]} 2. Nf3 {[%clk 0:03:00]}  e6 {[%clk 0:03:00]} 3. d4 {[%clk 0:03:01]}  cxd4 {[%clk 0:03:01]} 4. Nxd4 {[%clk 0:03:01]}  a6 {[%clk 0:03:01]} 5. Bd3 {[%clk 0:03:00]}  Qc7 {[%clk 0:02:59]} 6. O-O {[%clk 0:03:00]}  Nc6 {[%clk 0:03:00]} 7. Nb3 {[%clk 0:02:54]}  Nf6 {[%clk 0:02:58]} 8. Nc3 {[%clk 0:02:51]}  Ne5 {[%clk 0:02:56]} 9. f4 {[%clk 0:02:48]}  Nxd3 {[%clk 0:02:43]} 10. cxd3 {[%clk 0:02:39]}  d6 {[%clk 0:02:39]} 11. d4 {[%clk 0:02:38]}  Be7 {[%clk 0:02:36]} 12. e5 {[%clk 0:02:24]}  Nd5 {[%clk 0:02:29]} 13. Nxd5 {[%clk 0:02:23]}  exd5 {[%clk 0:02:29]} 14. f5 {[%clk 0:02:21]}  dxe5 {[%clk 0:02:23]} 15. dxe5 {[%clk 0:02:21]}  Qxe5 {[%clk 0:02:07]} 16. f6 {[%clk 0:02:17]}  gxf6 {[%clk 0:01:55]} 17. Bf4 {[%clk 0:02:13]}  Qe4 {[%clk 0:01:34]} 18. Qh5 {[%clk 0:02:00]}  Rg8 {[%clk 0:01:27]} 19. g3 {[%clk 0:01:33]}  Bg4 {[%clk 0:01:15]} 20. Qh4 {[%clk 0:01:33]}  Bd8 {[%clk 0:00:46]} 21. Nc5 {[%clk 0:01:00]}  Qd4+ {[%clk 0:00:32]} 22. Kh1 {[%clk 0:00:54]}  Qxc5 {[%clk 0:00:32]} 23. Qxh7 {[%clk 0:00:46]}  Rf8 {[%clk 0:00:28]} 24. Rae1+ {[%clk 0:00:42]}  Be6 {[%clk 0:00:27]} 25. Bh6 {[%clk 0:00:34]}  d4 {[%clk 0:00:20]} 26. Bxf8 {[%clk 0:00:33]}  Qxf8 {[%clk 0:00:15]} 27. Rxe6+ {[%clk 0:00:33]}  fxe6 {[%clk 0:00:15]} 28. Qxb7 {[%clk 0:00:34]}  Qd6 {[%clk 0:00:07]} 29. Qxa8 {[%clk 0:00:33]}  e5 {[%clk 0:00:08]} 30. Qe4 {[%clk 0:00:33]}  Be7 {[%clk 0:00:07]} 31. Rd1 {[%clk 0:00:27]}  Kf7 {[%clk 0:00:07]} 32. g4 {[%clk 0:00:26]}  Qe6 {[%clk 0:00:07]} 33. b3 {[%clk 0:00:24]}  Qb6 {[%clk 0:00:04]} 34. Qd5+ {[%clk 0:00:23]}  Kf8 {[%clk 0:00:04]} 35. Rc1 {[%clk 0:00:22]}  Qb8 {[%clk 0:00:03]} 36. Qe6 {[%clk 0:00:17]}  Qb7+ {[%clk 0:00:03]} 37. Qc6 {[%clk 0:00:17]}  Qb4 {[%clk 0:00:02]} 38. Qd5 {[%clk 0:00:14]} 1-0


[Site "https://www.chess.com"]

[Event "Titled Tuesday Blitz February 15 Early 2022"]
[White "Fedoseev, Vladimir"]
[Black "Moroni, Luca Jr"]
[WhiteFideId "24130737"]
[BlackFideId "865834"]
[WhiteElo "2726"]
[BlackElo "2573"]
[Result "1-0"]
[Round "06"]
[TimeControl "180+1"]
[Date "2022.02.15"]
[WhiteClock "0:00:29"]
[BlackClock "0:00:29"]

1. e4 {[%clk 0:03:00]}  e5 {[%clk 0:02:59]} 2. Nf3 {[%clk 0:03:00]}  Nc6 {[%clk 0:03:00]} 3. Bb5 {[%clk 0:03:01]}  a6 {[%clk 0:02:59]} 4. Ba4 {[%clk 0:03:00]}  d6 {[%clk 0:02:59]} 5. c3 {[%clk 0:02:58]}  Bd7 {[%clk 0:02:59]} 6. O-O {[%clk 0:02:57]}  g6 {[%clk 0:02:59]} 7. d4 {[%clk 0:02:57]}  Bg7 {[%clk 0:02:59]} 8. Re1 {[%clk 0:02:56]}  Nf6 {[%clk 0:02:53]} 9. Bg5 {[%clk 0:02:55]}  h6 {[%clk 0:02:42]} 10. Bh4 {[%clk 0:02:53]}  O-O {[%clk 0:02:27]} 11. Nbd2 {[%clk 0:02:53]}  Qe8 {[%clk 0:02:21]} 12. Bb3 {[%clk 0:02:46]}  Nh5 {[%clk 0:02:12]} 13. Nf1 {[%clk 0:02:46]}  exd4 {[%clk 0:02:10]} 14. Nxd4 {[%clk 0:02:43]}  Qe5 {[%clk 0:01:50]} 15. Nf3 {[%clk 0:02:39]}  Qc5 {[%clk 0:01:39]} 16. Ne3 {[%clk 0:02:36]}  Nf6 {[%clk 0:01:15]} 17. e5 {[%clk 0:02:21]}  Ng4 {[%clk 0:01:10]} 18. exd6 {[%clk 0:02:04]}  Nxe3 {[%clk 0:01:06]} 19. Rxe3 {[%clk 0:02:02]}  cxd6 {[%clk 0:01:07]} 20. Bg3 {[%clk 0:01:59]}  Rfe8 {[%clk 0:01:00]} 21. Bxd6 {[%clk 0:01:53]}  Qf5 {[%clk 0:00:56]} 22. Rxe8+ {[%clk 0:01:11]}  Rxe8 {[%clk 0:00:55]} 23. Bg3 {[%clk 0:01:05]}  Be6 {[%clk 0:00:54]} 24. Qc2 {[%clk 0:00:54]}  Qb5 {[%clk 0:00:39]} 25. Re1 {[%clk 0:00:50]}  Nd8 {[%clk 0:00:37]} 26. Ba4 {[%clk 0:00:47]}  Bf5 {[%clk 0:00:36]} 27. Bxb5 {[%clk 0:00:38]}  Rxe1+ {[%clk 0:00:35]} 28. Nxe1 {[%clk 0:00:39]}  Bxc2 {[%clk 0:00:36]} 29. Bxa6 {[%clk 0:00:38]}  Be4 {[%clk 0:00:35]} 30. Bc4 {[%clk 0:00:35]}  Nc6 {[%clk 0:00:35]} 31. f3 {[%clk 0:00:35]}  Bb1 {[%clk 0:00:34]} 32. Bd5 {[%clk 0:00:35]}  Kf8 {[%clk 0:00:34]} 33. Kf2 {[%clk 0:00:34]}  Ke8 {[%clk 0:00:34]} 34. Ke2 {[%clk 0:00:34]}  f5 {[%clk 0:00:33]} 35. Nd3 {[%clk 0:00:33]}  Kd7 {[%clk 0:00:29]} 36. Nc5+ {[%clk 0:00:33]}  Kc8 {[%clk 0:00:29]} 37. Be6+ {[%clk 0:00:29]}  Kd8 {[%clk 0:00:29]} 38. Nxb7+ {[%clk 0:00:29]}  Ke7 {[%clk 0:00:29]} 39. Bd5 {[%clk 0:00:29]}  Nd8 {[%clk 0:00:29]} 40. Nxd8 {[%clk 0:00:29]} 1-0


[Site "https://www.chess.com"]

[Event "Titled Tuesday Blitz February 15 Early 2022"]
[White "Fernandez, Michael"]
[Black "Khripachenko, Alexander"]
[WhiteFideId "5803560"]
[BlackFideId "54184975"]
[WhiteElo "2110"]
[BlackElo "2177"]
[Result "1-0"]
[Round "06"]
[TimeControl "180+1"]
[Date "2022.02.15"]
[WhiteClock "0:00:27"]
[BlackClock "0:00:32"]

1. b4 {[%clk 0:03:00]}  c6 {[%clk 0:02:55]} 2. Bb2 {[%clk 0:03:01]}  Qb6 {[%clk 0:02:55]} 3. a3 {[%clk 0:03:00]}  a5 {[%clk 0:02:55]} 4. e3 {[%clk 0:02:55]}  axb4 {[%clk 0:02:55]} 5. Bd4 {[%clk 0:02:52]}  c5 {[%clk 0:02:54]} 6. Bxc5 {[%clk 0:02:53]}  Qc7 {[%clk 0:02:18]} 7. Bxb4 {[%clk 0:02:53]}  Nc6 {[%clk 0:02:18]} 8. Bc3 {[%clk 0:02:51]}  e5 {[%clk 0:02:18]} 9. Bb5 {[%clk 0:02:36]}  Nf6 {[%clk 0:02:17]} 10. Ne2 {[%clk 0:02:33]}  Bd6 {[%clk 0:02:16]} 11. Ng3 {[%clk 0:02:28]}  O-O {[%clk 0:02:15]} 12. a4 {[%clk 0:02:24]}  Bc5 {[%clk 0:02:11]} 13. d3 {[%clk 0:02:17]}  d5 {[%clk 0:02:11]} 14. O-O {[%clk 0:02:13]}  Bg4 {[%clk 0:02:10]} 15. Qd2 {[%clk 0:02:09]}  h5 {[%clk 0:02:10]} 16. Bxc6 {[%clk 0:02:05]}  bxc6 {[%clk 0:02:11]} 17. d4 {[%clk 0:01:59]}  exd4 {[%clk 0:02:10]} 18. Bxd4 {[%clk 0:01:59]}  Be7 {[%clk 0:02:10]} 19. Nc3 {[%clk 0:01:53]}  h4 {[%clk 0:02:09]} 20. Nge2 {[%clk 0:01:49]}  h3 {[%clk 0:02:09]} 21. f3 {[%clk 0:01:47]}  hxg2 {[%clk 0:02:08]} 22. Kxg2 {[%clk 0:01:46]}  Be6 {[%clk 0:02:07]} 23. Nf4 {[%clk 0:01:45]}  Bf5 {[%clk 0:02:07]} 24. Kh1 {[%clk 0:01:33]}  Rfe8 {[%clk 0:01:38]} 25. Rg1 {[%clk 0:01:31]}  g6 {[%clk 0:01:38]} 26. Raf1 {[%clk 0:01:17]}  Rad8 {[%clk 0:01:36]} 27. Nce2 {[%clk 0:01:08]}  Qd6 {[%clk 0:00:59]} 28. Ng3 {[%clk 0:01:03]}  Bc8 {[%clk 0:01:00]} 29. Qc3 {[%clk 0:00:58]}  c5 {[%clk 0:00:59]} 30. Be5 {[%clk 0:00:57]}  Qb6 {[%clk 0:00:57]} 31. Ngh5 {[%clk 0:00:45]}  d4 {[%clk 0:00:53]} 32. exd4 {[%clk 0:00:39]}  cxd4 {[%clk 0:00:52]} 33. Qb3 {[%clk 0:00:29]}  Kf8 {[%clk 0:00:32]} 34. Qxb6 {[%clk 0:00:27]} 1-0


[Site "https://www.chess.com"]

[Event "Titled Tuesday Blitz February 15 Early 2022"]
[White "Gant, Chris J"]
[Black "Buscar, Michael"]
[WhiteFideId "403946"]
[BlackFideId "2603616"]
[WhiteElo "2181"]
[BlackElo "2010"]
[Result "1/2-1/2"]
[Round "06"]
[TimeControl "180+1"]
[Date "2022.02.15"]
[WhiteClock "0:00:02"]
[BlackClock "0:00:19"]

1. d4 {[%clk 0:02:57]}  Nf6 {[%clk 0:02:49]} 2. c4 {[%clk 0:02:56]}  e6 {[%clk 0:02:36]} 3. g3 {[%clk 0:02:55]}  c5 {[%clk 0:02:29]} 4. Nf3 {[%clk 0:02:54]}  cxd4 {[%clk 0:02:27]} 5. Nxd4 {[%clk 0:02:53]}  Be7 {[%clk 0:02:27]} 6. Bg2 {[%clk 0:02:52]}  O-O {[%clk 0:02:28]} 7. O-O {[%clk 0:02:51]}  Nc6 {[%clk 0:02:28]} 8. Nc3 {[%clk 0:02:48]}  a6 {[%clk 0:02:26]} 9. b3 {[%clk 0:02:41]}  Qc7 {[%clk 0:02:26]} 10. Bb2 {[%clk 0:02:40]}  d6 {[%clk 0:02:27]} 11. e3 {[%clk 0:02:25]}  Bd7 {[%clk 0:02:27]} 12. Qe2 {[%clk 0:02:21]}  Rfd8 {[%clk 0:02:27]} 13. Rfd1 {[%clk 0:02:18]}  Be8 {[%clk 0:02:28]} 14. e4 {[%clk 0:02:00]}  Nxd4 {[%clk 0:02:14]} 15. Rxd4 {[%clk 0:01:59]}  Nd7 {[%clk 0:02:14]} 16. Rdd1 {[%clk 0:01:54]}  Bf6 {[%clk 0:02:14]} 17. Na4 {[%clk 0:01:45]}  Rac8 {[%clk 0:02:04]} 18. Bxf6 {[%clk 0:01:43]}  Nxf6 {[%clk 0:02:04]} 19. Nb2 {[%clk 0:01:42]}  Bc6 {[%clk 0:02:04]} 20. f3 {[%clk 0:01:33]}  d5 {[%clk 0:02:00]} 21. e5 {[%clk 0:01:21]}  Nd7 {[%clk 0:01:54]} 22. f4 {[%clk 0:01:20]}  dxc4 {[%clk 0:01:34]} 23. Nxc4 {[%clk 0:01:18]}  Bxg2 {[%clk 0:01:28]} 24. Qxg2 {[%clk 0:01:16]}  Nb6 {[%clk 0:01:21]} 25. Nd6 {[%clk 0:01:10]}  Qc5+ {[%clk 0:01:15]} 26. Kh1 {[%clk 0:01:10]}  Rxd6 {[%clk 0:00:45]} 27. exd6 {[%clk 0:00:57]}  Nd5 {[%clk 0:00:44]} 28. d7 {[%clk 0:00:55]}  Rd8 {[%clk 0:00:40]} 29. Rac1 {[%clk 0:00:54]}  Qd6 {[%clk 0:00:37]} 30. f5 {[%clk 0:00:34]}  Qxd7 {[%clk 0:00:32]} 31. fxe6 {[%clk 0:00:33]}  fxe6 {[%clk 0:00:33]} 32. Qe4 {[%clk 0:00:29]}  Qe7 {[%clk 0:00:20]} 33. Re1 {[%clk 0:00:26]}  Re8 {[%clk 0:00:20]} 34. Rcd1 {[%clk 0:00:23]}  Nf6 {[%clk 0:00:20]} 35. Qc4 {[%clk 0:00:21]}  Kh8 {[%clk 0:00:19]} 36. Re2 {[%clk 0:00:19]}  e5 {[%clk 0:00:19]} 37. Rde1 {[%clk 0:00:18]}  e4 {[%clk 0:00:20]} 38. Qd4 {[%clk 0:00:14]}  h6 {[%clk 0:00:20]} 39. Kg2 {[%clk 0:00:13]}  Qe6 {[%clk 0:00:20]} 40. Kh1 {[%clk 0:00:12]}  Qg4 {[%clk 0:00:20]} 41. Qe3 {[%clk 0:00:10]}  Re5 {[%clk 0:00:20]} 42. Qf4 {[%clk 0:00:09]}  Qh5 {[%clk 0:00:18]} 43. Rxe4 {[%clk 0:00:03]}  Rxe4 {[%clk 0:00:18]} 44. Rxe4 {[%clk 0:00:03]}  Qd1+ {[%clk 0:00:17]} 45. Kg2 {[%clk 0:00:03]}  Qc2+ {[%clk 0:00:17]} 46. Kf3 {[%clk 0:00:02]}  Nxe4 {[%clk 0:00:13]} 47. Qxe4 {[%clk 0:00:02]}  Qxa2 {[%clk 0:00:13]} 48. Qe8+ {[%clk 0:00:02]}  Kh7 {[%clk 0:00:12]} 49. Qe4+ {[%clk 0:00:01]}  Kg8 {[%clk 0:00:13]} 50. Qe8+ {[%clk 0:00:01]}  Kh7 {[%clk 0:00:14]} 51. Qe4+ {[%clk 0:00:01]}  g6 {[%clk 0:00:14]} 52. Qe7+ {[%clk 0:00:01]}  Kg8 {[%clk 0:00:15]} 53. Qe8+ {[%clk 0:00:01]}  Kg7 {[%clk 0:00:15]} 54. Qe7+ {[%clk 0:00:01]}  Kg8 {[%clk 0:00:16]} 55. Qe8+ {[%clk 0:00:01]}  Kg7 {[%clk 0:00:17]} 56. Qe7+ {[%clk 0:00:01]}  Kh8 {[%clk 0:00:17]} 57. Qf8+ {[%clk 0:00:01]}  Kh7 {[%clk 0:00:17]} 58. Qf7+ {[%clk 0:00:01]}  Kh8 {[%clk 0:00:18]} 59. Qf8+ {[%clk 0:00:01]}  Kh7 {[%clk 0:00:19]} 60. Qf7+ {[%clk 0:00:01]}  Kh8 {[%clk 0:00:19]} 61. Qf8+ {[%clk 0:00:02]} 1/2-1/2


[Site "https://www.chess.com"]

[Event "Titled Tuesday Blitz February 15 Early 2022"]
[White "Garagulya, Konstantin"]
[Black "Pichot, Alan"]
[WhiteFideId "4128931"]
[BlackFideId "110973"]
[WhiteElo "2329"]
[BlackElo "2543"]
[Result "0-1"]
[Round "06"]
[TimeControl "180+1"]
[Date "2022.02.15"]
[WhiteClock "0:00:01"]
[BlackClock "0:00:04"]

1. d4 {[%clk 0:02:57]}  Nf6 {[%clk 0:03:00]} 2. Nf3 {[%clk 0:02:57]}  d5 {[%clk 0:02:59]} 3. c4 {[%clk 0:02:57]}  e6 {[%clk 0:03:00]} 4. Bg5 {[%clk 0:02:57]}  h6 {[%clk 0:02:57]} 5. Bh4 {[%clk 0:02:57]}  g5 {[%clk 0:02:50]} 6. Bg3 {[%clk 0:02:56]}  Ne4 {[%clk 0:02:49]} 7. Nbd2 {[%clk 0:02:57]}  Nxg3 {[%clk 0:02:48]} 8. hxg3 {[%clk 0:02:56]}  Bg7 {[%clk 0:02:48]} 9. e3 {[%clk 0:02:57]}  c5 {[%clk 0:02:42]} 10. cxd5 {[%clk 0:02:55]}  exd5 {[%clk 0:02:40]} 11. Bb5+ {[%clk 0:02:49]}  Kf8 {[%clk 0:02:34]} 12. dxc5 {[%clk 0:02:19]}  Bxb2 {[%clk 0:02:27]} 13. Rb1 {[%clk 0:02:17]}  Bf6 {[%clk 0:02:23]} 14. O-O {[%clk 0:02:07]}  Nd7 {[%clk 0:02:12]} 15. Nb3 {[%clk 0:02:05]}  g4 {[%clk 0:02:02]} 16. Nfd4 {[%clk 0:01:44]}  Ne5 {[%clk 0:01:59]} 17. c6 {[%clk 0:01:44]}  h5 {[%clk 0:01:51]} 18. cxb7 {[%clk 0:01:37]}  Bxb7 {[%clk 0:01:51]} 19. Nc5 {[%clk 0:01:35]}  Bc8 {[%clk 0:01:52]} 20. Nc6 {[%clk 0:01:34]}  Qd6 {[%clk 0:01:11]} 21. Ne4 {[%clk 0:01:18]}  Qe6 {[%clk 0:01:11]} 22. Nxf6 {[%clk 0:01:18]}  Qxf6 {[%clk 0:01:11]} 23. Qxd5 {[%clk 0:01:14]}  Ng6 {[%clk 0:00:50]} 24. Nd4 {[%clk 0:00:59]}  Rb8 {[%clk 0:00:46]} 25. Bd3 {[%clk 0:00:24]}  Rxb1 {[%clk 0:00:37]} 26. Rxb1 {[%clk 0:00:24]}  Ne7 {[%clk 0:00:27]} 27. Qc5 {[%clk 0:00:19]}  Kg7 {[%clk 0:00:24]} 28. Rb8 {[%clk 0:00:15]}  h4 {[%clk 0:00:23]} 29. Rxc8 {[%clk 0:00:12]}  Rxc8 {[%clk 0:00:15]} 30. Qxe7 {[%clk 0:00:09]}  Qxe7 {[%clk 0:00:06]} 31. Nf5+ {[%clk 0:00:09]}  Kf6 {[%clk 0:00:07]} 32. Nxe7 {[%clk 0:00:10]}  Rc1+ {[%clk 0:00:06]} 33. Kh2 {[%clk 0:00:09]}  hxg3+ {[%clk 0:00:06]} 34. Kxg3 {[%clk 0:00:10]}  Kxe7 {[%clk 0:00:06]} 35. Kxg4 {[%clk 0:00:10]}  Rd1 {[%clk 0:00:07]} 36. Bc4 {[%clk 0:00:10]}  Rd2 {[%clk 0:00:05]} 37. Kf3 {[%clk 0:00:10]}  f5 {[%clk 0:00:04]} 38. Bb3 {[%clk 0:00:09]}  Kf6 {[%clk 0:00:05]} 39. g3 {[%clk 0:00:10]}  Ke5 {[%clk 0:00:05]} 40. Bf7 {[%clk 0:00:08]}  a5 {[%clk 0:00:04]} 41. Bb3 {[%clk 0:00:07]}  Rb2 {[%clk 0:00:03]} 42. Bg8 {[%clk 0:00:07]}  a4 {[%clk 0:00:04]} 43. Bf7 {[%clk 0:00:05]}  a3 {[%clk 0:00:05]} 44. Bg8 {[%clk 0:00:06]}  Rb8 {[%clk 0:00:05]} 45. Bf7 {[%clk 0:00:06]}  Rb7 {[%clk 0:00:05]} 46. Bc4 {[%clk 0:00:06]}  Rb2 {[%clk 0:00:05]} 47. Bg8 {[%clk 0:00:07]}  Kd6 {[%clk 0:00:06]} 48. Bc4 {[%clk 0:00:06]}  Kc5 {[%clk 0:00:06]} 49. Be6 {[%clk 0:00:06]}  Kb4 {[%clk 0:00:06]} 50. g4 {[%clk 0:00:06]}  fxg4+ {[%clk 0:00:06]} 51. Kxg4 {[%clk 0:00:06]}  Rxf2 {[%clk 0:00:06]} 52. e4 {[%clk 0:00:07]}  Kc5 {[%clk 0:00:06]} 53. Kg3 {[%clk 0:00:07]}  Rd2 {[%clk 0:00:04]} 54. Bd5 {[%clk 0:00:06]}  Kd4 {[%clk 0:00:05]} 55. Kf3 {[%clk 0:00:05]}  Rb2 {[%clk 0:00:04]} 56. Kf4 {[%clk 0:00:05]}  Rf2+ {[%clk 0:00:04]} 57. Kg3 {[%clk 0:00:05]}  Ke3 {[%clk 0:00:05]} 58. e5 {[%clk 0:00:05]}  Rf5 {[%clk 0:00:05]} 59. Bb3 {[%clk 0:00:05]}  Rxe5 {[%clk 0:00:05]} 60. Kg2 {[%clk 0:00:05]}  Rg5+ {[%clk 0:00:05]} 61. Kf1 {[%clk 0:00:06]}  Rc5 {[%clk 0:00:05]} 62. Kg2 {[%clk 0:00:05]}  Rb5 {[%clk 0:00:04]} 63. Be6 {[%clk 0:00:04]}  Kf4 {[%clk 0:00:04]} 64. Kf1 {[%clk 0:00:03]}  Kf3 {[%clk 0:00:03]} 65. Kg1 {[%clk 0:00:03]}  Re5 {[%clk 0:00:02]} 66. Bb3 {[%clk 0:00:03]}  Re2 {[%clk 0:00:02]} 67. Bc4 {[%clk 0:00:02]}  Rc2 {[%clk 0:00:01]} 68. Bb3 {[%clk 0:00:02]}  Rd2 {[%clk 0:00:02]} 69. Bc4 {[%clk 0:00:02]}  Ke3 {[%clk 0:00:02]} 70. Bb3 {[%clk 0:00:02]}  Kd4 {[%clk 0:00:03]} 71. Be6 {[%clk 0:00:02]}  Kc3 {[%clk 0:00:03]} 72. Kf1 {[%clk 0:00:02]}  Kb2 {[%clk 0:00:04]} 73. Ke1 {[%clk 0:00:02]}  Rh2 {[%clk 0:00:05]} 74. Bc4 {[%clk 0:00:02]}  Kb1 {[%clk 0:00:05]} 75. Kd1 {[%clk 0:00:02]}  Rh4 {[%clk 0:00:05]} 76. Bb3 {[%clk 0:00:02]}  Rh1+ {[%clk 0:00:04]} 77. Kd2 {[%clk 0:00:02]}  Rh3 {[%clk 0:00:05]} 78. Be6 {[%clk 0:00:01]}  Rg3 {[%clk 0:00:04]} 0-1


[Site "https://www.chess.com"]

[Event "Titled Tuesday Blitz February 15 Early 2022"]
[White "Garriga Cazorla, Pere"]
[Black "Andreikin, Dmitry"]
[WhiteFideId "32011601"]
[BlackFideId "4158814"]
[WhiteElo "2458"]
[BlackElo "2736"]
[Result "0-1"]
[Round "06"]
[TimeControl "180+1"]
[Date "2022.02.15"]
[WhiteClock "0:00:23"]
[BlackClock "0:01:00"]

1. d4 {[%clk 0:03:00]}  Nf6 {[%clk 0:02:59]} 2. c4 {[%clk 0:02:59]}  e6 {[%clk 0:02:59]} 3. Nc3 {[%clk 0:03:00]}  Bb4 {[%clk 0:02:59]} 4. Qc2 {[%clk 0:02:50]}  O-O {[%clk 0:02:59]} 5. Nf3 {[%clk 0:02:50]}  b6 {[%clk 0:02:54]} 6. e4 {[%clk 0:02:49]}  d6 {[%clk 0:02:54]} 7. Bd3 {[%clk 0:02:43]}  e5 {[%clk 0:02:40]} 8. O-O {[%clk 0:02:35]}  Nc6 {[%clk 0:02:25]} 9. d5 {[%clk 0:02:34]}  Ne7 {[%clk 0:02:24]} 10. Ne2 {[%clk 0:02:06]}  a5 {[%clk 0:02:24]} 11. Nh4 {[%clk 0:01:59]}  Bc5 {[%clk 0:02:18]} 12. Be3 {[%clk 0:01:48]}  Bxe3 {[%clk 0:02:14]} 13. fxe3 {[%clk 0:01:47]}  Ng4 {[%clk 0:02:15]} 14. Qd2 {[%clk 0:01:44]}  Nxd5 {[%clk 0:02:13]} 15. exd5 {[%clk 0:01:38]}  Qxh4 {[%clk 0:02:13]} 16. h3 {[%clk 0:01:39]}  Nh6 {[%clk 0:02:06]} 17. Qe1 {[%clk 0:01:34]}  Qg5 {[%clk 0:01:56]} 18. Qg3 {[%clk 0:01:32]}  Qxg3 {[%clk 0:01:56]} 19. Nxg3 {[%clk 0:01:33]}  f5 {[%clk 0:01:55]} 20. Ne2 {[%clk 0:01:32]}  Bd7 {[%clk 0:01:50]} 21. Rf2 {[%clk 0:01:29]}  g6 {[%clk 0:01:49]} 22. Nc3 {[%clk 0:01:29]}  Kg7 {[%clk 0:01:49]} 23. b3 {[%clk 0:01:30]}  Ng8 {[%clk 0:01:48]} 24. a3 {[%clk 0:01:30]}  h5 {[%clk 0:01:47]} 25. Rc1 {[%clk 0:01:25]}  h4 {[%clk 0:01:45]} 26. b4 {[%clk 0:01:20]}  axb4 {[%clk 0:01:46]} 27. axb4 {[%clk 0:01:21]}  Ra3 {[%clk 0:01:46]} 28. Rfc2 {[%clk 0:01:20]}  Nf6 {[%clk 0:01:43]} 29. Bf1 {[%clk 0:01:18]}  Rb8 {[%clk 0:01:39]} 30. Be2 {[%clk 0:01:00]}  Rb3 {[%clk 0:01:38]} 31. c5 {[%clk 0:00:50]}  bxc5 {[%clk 0:01:34]} 32. bxc5 {[%clk 0:00:51]}  dxc5 {[%clk 0:01:34]} 33. Nd1 {[%clk 0:00:44]}  Ne4 {[%clk 0:01:21]} 34. Bf3 {[%clk 0:00:40]}  Ng3 {[%clk 0:01:21]} 35. Nc3 {[%clk 0:00:23]}  e4 {[%clk 0:01:05]} 36. Bd1 {[%clk 0:00:23]}  Rb2 {[%clk 0:01:06]} 37. Ne2 {[%clk 0:00:23]}  Rxc2 {[%clk 0:01:00]} 38. Rxc2 {[%clk 0:00:23]}  Rb1 {[%clk 0:01:00]} 0-1


[Site "https://www.chess.com"]

[Event "Titled Tuesday Blitz February 15 Early 2022"]
[White "Goltsev, Dmitry"]
[Black "Vaishali, Rameshbabu"]
[WhiteFideId "24176710"]
[BlackFideId "5091756"]
[WhiteElo "2273"]
[BlackElo "2343"]
[Result "1-0"]
[Round "06"]
[TimeControl "180+1"]
[Date "2022.02.15"]
[WhiteClock "0:00:11"]
[BlackClock "0:00:02"]

1. e4 {[%clk 0:02:58]}  e5 {[%clk 0:02:58]} 2. Nf3 {[%clk 0:02:58]}  Nc6 {[%clk 0:02:59]} 3. Bb5 {[%clk 0:02:59]}  a6 {[%clk 0:02:59]} 4. Ba4 {[%clk 0:02:59]}  Nf6 {[%clk 0:02:59]} 5. O-O {[%clk 0:02:59]}  b5 {[%clk 0:02:57]} 6. Bb3 {[%clk 0:02:59]}  Bb7 {[%clk 0:02:58]} 7. a4 {[%clk 0:02:56]}  Nxe4 {[%clk 0:02:53]} 8. Re1 {[%clk 0:02:51]}  Nc5 {[%clk 0:02:49]} 9. Nxe5 {[%clk 0:02:50]}  Nxe5 {[%clk 0:02:44]} 10. Rxe5+ {[%clk 0:02:51]}  Ne6 {[%clk 0:02:44]} 11. axb5 {[%clk 0:02:48]}  Bd6 {[%clk 0:02:41]} 12. Re3 {[%clk 0:01:42]}  Qh4 {[%clk 0:02:29]} 13. g3 {[%clk 0:00:57]}  Qh3 {[%clk 0:02:25]} 14. Qf1 {[%clk 0:00:53]}  Qf5 {[%clk 0:02:16]} 15. bxa6 {[%clk 0:00:51]}  Bc6 {[%clk 0:01:53]} 16. Nc3 {[%clk 0:00:47]}  O-O {[%clk 0:01:41]} 17. Ba4 {[%clk 0:00:38]}  Bf3 {[%clk 0:01:36]} 18. Bxd7 {[%clk 0:00:34]}  Bc5 {[%clk 0:01:16]} 19. Qd3 {[%clk 0:00:31]}  Qh5 {[%clk 0:00:22]} 20. Rxf3 {[%clk 0:00:26]}  Ng5 {[%clk 0:00:22]} 21. Rf4 {[%clk 0:00:19]}  Rad8 {[%clk 0:00:20]} 22. Kg2 {[%clk 0:00:15]}  f5 {[%clk 0:00:18]} 23. Qc4+ {[%clk 0:00:13]}  Rf7 {[%clk 0:00:14]} 24. Qxc5 {[%clk 0:00:12]}  Qh3+ {[%clk 0:00:05]} 25. Kg1 {[%clk 0:00:12]}  Rdxd7 {[%clk 0:00:03]} 26. a7 {[%clk 0:00:12]}  Rde7 {[%clk 0:00:02]} 27. a8=Q+ {[%clk 0:00:11]} 1-0


[Site "https://www.chess.com"]

[Event "Titled Tuesday Blitz February 15 Early 2022"]
[White "Gontcharov, Vladislav"]
[Black "Prohorov, Olexandr"]
[WhiteFideId "4123492"]
[BlackFideId "14105578"]
[WhiteElo "2503"]
[BlackElo "1993"]
[Result "1-0"]
[Round "06"]
[TimeControl "180+1"]
[Date "2022.02.15"]
[WhiteClock "0:02:04"]
[BlackClock "0:02:33"]

1. e4 {[%clk 0:02:54]}  c5 {[%clk 0:02:58]} 2. Nf3 {[%clk 0:02:51]}  d6 {[%clk 0:02:58]} 3. d4 {[%clk 0:02:51]}  cxd4 {[%clk 0:02:58]} 4. Qxd4 {[%clk 0:02:52]}  Nf6 {[%clk 0:02:59]} 5. c4 {[%clk 0:02:52]}  Nc6 {[%clk 0:02:57]} 6. Qe3 {[%clk 0:02:52]}  g6 {[%clk 0:02:57]} 7. h3 {[%clk 0:02:51]}  Bg7 {[%clk 0:02:58]} 8. Nc3 {[%clk 0:02:51]}  O-O {[%clk 0:02:57]} 9. Be2 {[%clk 0:02:46]}  Nd7 {[%clk 0:02:52]} 10. O-O {[%clk 0:02:44]}  Nc5 {[%clk 0:02:52]} 11. Bd2 {[%clk 0:02:42]}  Ne6 {[%clk 0:02:50]} 12. Rac1 {[%clk 0:02:37]}  Bd7 {[%clk 0:02:48]} 13. Rfd1 {[%clk 0:02:33]}  Ncd4 {[%clk 0:02:43]} 14. Be1 {[%clk 0:02:27]}  Rc8 {[%clk 0:02:35]} 15. Nxd4 {[%clk 0:02:21]}  Nxd4 {[%clk 0:02:35]} 16. Rxd4 {[%clk 0:02:21]}  Bxd4 {[%clk 0:02:35]} 17. Qxd4 {[%clk 0:02:08]}  b6 {[%clk 0:02:35]} 18. Bd2 {[%clk 0:02:06]}  Be6 {[%clk 0:02:33]} 19. Bh6 {[%clk 0:02:04]} 1-0


[Site "https://www.chess.com"]

[Event "Titled Tuesday Blitz February 15 Early 2022"]
[White "Gozzoli, Yannick"]
[Black "Al-Tarboush, Ward"]
[WhiteFideId "616915"]
[BlackFideId "7601450"]
[WhiteElo "2609"]
[BlackElo "2276"]
[Result "1-0"]
[Round "06"]
[TimeControl "180+1"]
[Date "2022.02.15"]
[WhiteClock "0:01:19"]
[BlackClock "0:00:22"]

1. d4 {[%clk 0:03:00]}  b6 {[%clk 0:02:57]} 2. c4 {[%clk 0:03:00]}  Bb7 {[%clk 0:02:57]} 3. Nf3 {[%clk 0:03:00]}  Nf6 {[%clk 0:02:57]} 4. g3 {[%clk 0:03:01]}  e6 {[%clk 0:02:53]} 5. Bg2 {[%clk 0:03:01]}  Be7 {[%clk 0:02:50]} 6. O-O {[%clk 0:03:00]}  O-O {[%clk 0:02:50]} 7. Re1 {[%clk 0:03:00]}  c5 {[%clk 0:02:50]} 8. d5 {[%clk 0:02:59]}  exd5 {[%clk 0:02:49]} 9. Nh4 {[%clk 0:02:59]}  d6 {[%clk 0:02:20]} 10. Nf5 {[%clk 0:02:52]}  Nbd7 {[%clk 0:02:19]} 11. Nc3 {[%clk 0:02:52]}  g6 {[%clk 0:02:17]} 12. Nxe7+ {[%clk 0:02:50]}  Qxe7 {[%clk 0:02:18]} 13. Bg5 {[%clk 0:02:45]}  Qe5 {[%clk 0:02:12]} 14. Bf4 {[%clk 0:02:42]}  Qe7 {[%clk 0:01:59]} 15. cxd5 {[%clk 0:01:59]}  Ne5 {[%clk 0:01:57]} 16. Bg5 {[%clk 0:01:55]}  Kg7 {[%clk 0:01:30]} 17. Qc1 {[%clk 0:01:50]}  Rfe8 {[%clk 0:01:27]} 18. Qf4 {[%clk 0:01:43]}  Ned7 {[%clk 0:01:23]} 19. Bh3 {[%clk 0:01:35]}  Qe5 {[%clk 0:01:20]} 20. Qh4 {[%clk 0:01:32]}  Nf8 {[%clk 0:00:42]} 21. e4 {[%clk 0:01:31]}  Ng8 {[%clk 0:00:38]} 22. Bf4 {[%clk 0:01:19]}  g5 {[%clk 0:00:22]} 1-0


[Site "https://www.chess.com"]